[Event "FRA-ch Teams Top 16-Bas 2022"]
[Site "Chartres"]
[Date "2022.06.19"]
[Round "11.21"]
[White "Real, Thibault"]
[Black "Bailet, Pierre"]
[Result "0-1"]
[ECO "E61"]
[WhiteElo "2262"]
[BlackElo "2509"]
[Annotator "TA"]
[PlyCount "106"]
[EventDate "2022.06.16"]
[EventType "team-tourn"]
[EventCountry "FRA"]
[SourceTitle "playchess.com"]
[Source "ChessBase"]
[SourceQuality "1"]
[TimeControl "40/5400+30:1800+30"]

{[%evp 17,105,16,9,8,8,6,21,13,21,6,14,4,28,29,26,32,50,47,68,39,62,67,67,62,60,11,65,58,51,59,88,62,72,9,47,64,45,73,88,100,91,100,104,93,111,120,119,95,102,46,35,0,75,65,69,0,83,71,90,68,108,100,105,103,91,99,88,104,128,53,45,0,127,118,131,131,135,129,124,0,0,-886,-886,-880,-874,-829,-884,-858,-831,-29999]} 1. Nf3 {[%emt 0:00:28]} Nf6 {[%emt 0:00:19]} 2. d4 {[%emt 0:00:18]} g6 {[%emt 0:00:36]} 3. c4 {[%emt 0:00:06]} Bg7 {[%emt 0:00:12]} 4. e3 {[%emt 0:00:21]} O-O {[%emt 0:00:30]} 5. Be2 {[%emt 0:00:05]} c5 {[%emt 0:01:24]} 6. d5 {[%emt 0:00:05]} e6 {[%emt 0:00:31]} 7. Nc3 {[%emt 0:00:04]} exd5 {[%emt 0:00:16]} 8. cxd5 {[%emt 0:00:06]} d6 {[%emt 0:00:13]} 9. O-O {[%emt 0:00:17]} Bg4 {[%emt 0:01:36]} 10. h3 {[%emt 0:01:10] E61: King's Indian: Early deviations for White, including Smyslov System.} Bxf3 {[%emt 0:00:09]} 11. Bxf3 {[%emt 0:00:05]} Nbd7 {[%emt 0:01:35]} 12. Be2 {[%emt 0:01:29] The position is equal.} Re8 {[%emt 0:02:46]} 13. Qc2 {[%emt 0:01:55] [#]} Qe7 $146 {[%emt 0:03:32]} ({Predecessor:} 13... a6 14. a4 Rc8 15. a5 c4 16. Ra4 Rc5 17. Bxc4 b5 18. axb6 Nxb6 19. Qd3 Nfd7 {0-1 (30) Garrido Olivares,R (2165)-Moreno Ruiz,J (2461) Madrid 2019}) 14. Bd2 {[%emt 0:34:41]} a6 {[%emt 0:14:12]} 15. a4 $1 {[%emt 0:00:26] Inhibits b5.} Rac8 {[%emt 0:00:25]} 16. a5 {[%emt 0:01:42]} Rc7 {[%emt 0:10:16]} 17. Ra4 {[%emt 0:13:05]} Rec8 {[%emt 0:04:28]} 18. b3 {[%emt 0:03:14]} Ne5 {[%emt 0:06:47]} 19. f4 {[%emt 0:00:33]} Ned7 {[%emt 0:00:06]} 20. Bf3 {[%emt 0:00:20]} Ne8 {[%emt 0:03:38]} 21. g4 {[%emt 0:09:20]} (21. e4 $14 {is superior.}) 21... Rb8 {[%emt 0:03:46]} (21... c4 $11 22. Rxc4 Rxc4 23. bxc4 b5 24. axb6 Nxb6) 22. g5 {[%emt 0:08:16]} b5 {[%emt 0:05:28]} 23. axb6 $1 {[%emt 0:00:11]} Rxb6 {[%emt 0:00:05]} 24. Re4 {[%emt 0:01:08]} Qf8 {[%emt 0:01:16]} 25. f5 {[%emt 0:00:06]} (25. Ne2 $16) 25... Be5 {[%emt 0:05:33]} 26. Rh4 {[%emt 0:05:48]} Qe7 {[%emt 0:04:57]} 27. f6 {[%emt 0:01:19]} Nexf6 {[%emt 0:00:28]} 28. gxf6 {[%emt 0:00:12]} Nxf6 {[%emt 0:00:10]} 29. Rc4 {[%emt 0:13:26]} Rcb7 {[%emt 0:00:42]} 30. Rb1 {[%emt 0:00:31]} Nd7 {[%emt 0:04:13]} 31. Bg2 {[%emt 0:05:13]} Bg7 {[%emt 0:06:00]} 32. Re4 {[%emt 0:00:00]} Ne5 {[%emt 0:00:24]} 33. Na4 {[%emt 0:00:00]} (33. Ra4 $1 $16) 33... Rb5 $14 {[%emt 0:00:06]} 34. Nc3 {[%emt 0:00:00]} (34. Kh1 $5 {[%cal Ra4c3]}) 34... R5b6 {[%emt 0:01:42]} 35. Ne2 {[%emt 0:00:00]} Qd7 {[%emt 0:01:41]} 36. Nc3 {[%emt 0:00:44]} (36. Ba5 $14 Rb5 37. Qa2) 36... Qf5 {[%emt 0:01:52]} (36... Qe7 $1 $11) 37. Rf1 $16 {[%emt 0:00:11]} Qh5 {[%emt 0:01:18]} 38. Ra4 {[%emt 0:00:52]} h6 {[%emt 0:01:31]} 39. Ne4 {[%emt 0:01:03]} f5 {[%emt 0:01:17]} 40. Ng3 {[%emt 0:01:05]} Qg5 {[%emt 0:00:06]} 41. Ne2 {[%emt 0:08:52] Black must now prevent e4.} Rxb3 {[%emt 0:04:36]} 42. e4 {[%emt 0:01:40]} Qh4 {[%emt 0:05:27]} 43. Be1 {[%emt 0:06:34]} (43. Rxa6 Rb2 44. Qd1 fxe4 $11) (43. Bc3 $1 $16) 43... Qg5 $14 {[%emt 0:03:20] Threatens to win with ...Rb2.} 44. Bd2 {[%emt 0:02:09]} (44. exf5 $14 Nf3+ 45. Kh1 Nxe1 46. Rxe1) 44... Qh4 $16 {[%emt 0:15:27]} 45. Bc3 $1 {[%emt 0:00:07]} (45. Rxa6 $6 Rb2 46. Qd1 fxe4 $11) 45... f4 {[%emt 0:04:10]} (45... Qg5 $2 46. exf5 (46. Rxa6 Nc4 $17) 46... gxf5 47. Kh1 $18 (47. Rxa6 Nc4 $11)) 46. Rxf4 {[%emt 0:00:54]} Qg5 {[%emt 0:00:07][%cal Oe5g4] [#]} 47. Rf1 $1 {[%emt 0:11:02]} (47. Rxa6 $6 Nc4 48. e5 Ne3 $11) 47... Kh7 {[%emt 0:05:41] [#]} 48. Nf4 {[%emt 0:01:18]} ({Stronger than} 48. Rxa6 Nc4 49. Bf6 (49. Bxg7 $2 Ne3 $19) 49... Qe3+ 50. Kh1 Nd2 $17) (48. Kh1 $1 $16) 48... Qg3 $11 {[%emt 0:00:32]} 49. Ba1 {[%emt 0:01:00][%mdl 8192] [#]} (49. Ne2 $11 Qe3+ 50. Kh1) 49... Rb1 $3 $19 {[%emt 0:01:13][%mdl 512] ( -> ...Nf3+)} 50. Bxe5 {[%emt 0:00:30]} Rxf1+ {[%emt 0:00:24]} 51. Kxf1 {[%emt 0:00:04]} Bxe5 {[%emt 0:00:10]} 52. Nd3 {[%emt 0:01:23]} Rf7+ {[%emt 0:00:48]} 53. Kg1 {[%emt 0:00:21]} Qh2# {[%emt 0:08:59] Weighted Error Value: White=0.44/Black=0.13 (very precise)} 0-1

[Event "FRA-ch Teams Top 16-Bas 2022"]
[Site "Chartres"]
[Date "2022.06.19"]
[Round "11.22"]
[White "Migot, Tangi"]
[Black "Jaouen, Valentin"]
[Result "1-0"]
[ECO "C07"]
[WhiteElo "2353"]
[BlackElo "2121"]
[Annotator "TA"]
[PlyCount "53"]
[EventDate "2022.06.16"]
[EventType "team-tourn"]
[EventCountry "FRA"]
[SourceTitle "playchess.com"]
[Source "ChessBase"]
[SourceQuality "1"]
[TimeControl "40/5400+30:1800+30"]

{[%evp 11,53,27,25,31,39,31,46,46,45,14,0,2,127,132,87,105,84,114,119,118,239,108,507,500,496,487,689,686,683,666,877,860,1035,1035,1371,1312,1589,1580,1580,1546,29984,29985,29991,29992]} 1. e4 {[%emt 0:00:03]} e6 {[%emt 0:00:06]} 2. d4 {[%emt 0:01:05]} d5 {[%emt 0:00:05]} 3. Nd2 {[%emt 0:00:06]} c5 {[%emt 0:00:44]} 4. Ngf3 {[%emt 0:00:11]} Nc6 {[%emt 0:01:50]} 5. exd5 {[%emt 0:02:15]} Qxd5 {[%emt 0:01:42]} 6. Bc4 {[%emt 0:01:07]} Qd8 {[%emt 0:00:49]} 7. dxc5 $1 {[%emt 0:01:03][%mdl 4] now scores much better than the old 7.Nb3. C07: French Tarrasch: 3...c5, 4 Ngf3 and 4 exd5 Qxd5.} Bxc5 {[%emt 0:01:42]} 8. Qe2 {[%emt 0:00:20]} Qc7 {[%emt 0:04:47] [#]} 9. Ne4 $146 {[%emt 0:06:25] White is slightly better.} ({Predecessor:} 9. c3 Nf6 10. O-O a6 11. a4 O-O 12. Ne4 Nxe4 13. Qxe4 Ne7 14. Ng5 Ng6 15. Re1 {1-0 (33) Nielsen,M (1942)-Larsen,H (1714) Helsingor 2015}) 9... Be7 {[%emt 0:07:55]} 10. Bg5 {[%emt 0:08:20]} Bxg5 {[%emt 0:14:57]} 11. Nfxg5 {[%emt 0:05:19]} Nf6 {[%emt 0:02:09] [#]} (11... h6 $1 $11 12. Nf3 Nge7) 12. Nxf6+ $1 $16 {[%emt 0:07:11]} gxf6 {[%emt 0:00:06]} 13. Ne4 $36 {[%emt 0:00:14][%mdl 2048] White is really pushing.} f5 {[%emt 0:11:22]} 14. Nf6+ {[%emt 0:01:55]} Kf8 {[%emt 0:00:05] White must now prevent ...Nd4.} 15. O-O-O {[%emt 0:01:11] 0x0.00207b1bd6c4dp-1022s more active pieces. The black rooks are badly placed.} h5 {[%emt 0:11:48]} (15... Qf4+ $16 16. Kb1 Qg5) 16. Nxh5 {[%emt 0:14:48]} (16. Qe3 $18 {has better winning chances.}) 16... Rxh5 {[%emt 0:10:35][%mdl 8192]} 17. Qxh5 $18 {[%emt 0:00:30]} Qf4+ {[%emt 0:00:06]} 18. Rd2 {[%emt 0:00:11] Threatens to win with Qh8+.} Qxc4 {[%emt 0:00:04]} (18... Kg7 $142 19. Bb5 Ne5) 19. Rhd1 {[%emt 0:01:07][%cal Od2d8] White threatens Rd8+! and mate.} Qf4 {[%emt 0:02:10]} 20. g3 {[%emt 0:03:39]} Qc7 {[%emt 0:06:02]} 21. Qg5 {[%emt 0:02:27]} Ke8 {[%emt 0:02:10]} 22. h4 {[%emt 0:02:22][%cal Bh2h4,Bh4h5,Bh5h6][%mdl 32]} e5 {[%emt 0:00:28]} 23. h5 {[%emt 0:04:52] Intending h6 and mate.} Be6 {[%emt 0:07:07]} 24. Qg8+ {[%emt 0:03:52][%mdl 64] [#] Skewer} Ke7 {[%emt 0:00:05]} 25. Qxa8 {[%emt 0:00:09] White wants to mate with h6.} Bc8 {[%emt 0:00:11]} 26. h6 {[%emt 0:00:14]} Kf8 {[%emt 0:00:16]} 27. Rd7 {[%emt 0:00:28] Weighted Error Value: White=0.10 (very precise) /Black=1.26} 1-0

[Event "FRA-ch Teams Top 16-Bas 2022"]
[Site "Chartres"]
[Date "2022.06.19"]
[Round "11.23"]
[White "Prodhomme, Boris"]
[Black "Pucher, Sebastien"]
[Result "0-1"]
[ECO "A40"]
[WhiteElo "2045"]
[BlackElo "2300"]
[Annotator "TA"]
[PlyCount "94"]
[EventDate "2022.06.16"]
[EventType "team-tourn"]
[EventCountry "FRA"]
[SourceTitle "playchess.com"]
[Source "ChessBase"]
[SourceQuality "1"]
[TimeControl "40/5400+30:1800+30"]

{[%evp 9,94,30,38,36,36,40,31,40,33,12,20,6,22,20,13,0,0,0,22,16,31,28,31,14,31,0,0,-42,-30,-45,-50,-39,0,-56,-15,-62,-67,-239,-229,-168,-137,-158,0,0,0,0,0,0,0,0,101,78,606,25,21,-16,-26,-80,-86,-73,-83,-529,-529,-518,-450,-1148,-1121,-5808,-445,-435,-382,-1404,-1332,-936,-964,-5193,-2524,-1056,-761,-1709,-4770,-1945,-1627,-29973,-29974,-29985,-29986]} 1. d4 {[%emt 0:00:03][%cal Bd2d4,Bd4d5][%mdl 32]} g6 {[%emt 0:07:39]} 2. c4 {[%emt 0:00:41]} Bg7 {[%emt 0:00:11]} 3. e4 {[%emt 0:00:29]} Nc6 {[%emt 0:00:08]} 4. d5 {[%emt 0:03:41]} Nd4 {[%emt 0:00:48]} 5. Ne2 {[%emt 0:01:47]} e5 {[%emt 0:02:26]} 6. Nxd4 {[%emt 0:01:46] A40: Unusual replies to 1 d4.} exd4 {[%emt 0:00:15]} 7. Bd3 {[%emt 0:00:27]} d6 {[%emt 0:01:52]} 8. O-O {[%emt 0:01:55] White is slightly better.} Nf6 {[%emt 0:05:38]} 9. h3 {[%emt 0:06:35]} (9. Bg5 {keeps more tension.} h6 10. Bxf6 Qxf6 11. Nd2) 9... O-O {[%emt 0:02:13]} 10. Nd2 {[%emt 0:06:16]} c6 {[%emt 0:04:13] [#]} 11. b4 $146 {[%emt 0:07:24]} ({Predecessor:} 11. Nf3 Qb6 12. Bf4 Re8 13. Qc2 c5 14. Rab1 a5 15. b3 Nd7 16. a3 Ne5 17. Nxe5 dxe5 {1-0 (39) Argiroudis,S (2312)-Hadzimanolis,A (2232) Achaia 2016}) 11... a5 {[%emt 0:09:30]} 12. bxa5 {[%emt 0:04:02]} Qxa5 {[%emt 0:04:51]} 13. Nb3 {[%emt 0:01:47][%csl LRa5,LRd4]} Qb6 {[%emt 0:19:20]} 14. a4 {[%emt 0:04:43]} Re8 {[%emt 0:03:29]} 15. Re1 {[%emt 0:08:35]} Nd7 {[%emt 0:08:03][%cal Bf6d7,Bd7e5,Be5d3][%mdl 32]} 16. a5 {[%emt 0:07:42]} Qc7 {[%emt 0:03:41]} 17. Bf4 {[%emt 0:06:22][%cal Oc4c5]} c5 {[%emt 0:04:06]} 18. Bh2 {[%emt 0:02:48]} Ne5 {[%emt 0:06:01]} 19. f4 {[%emt 0:05:43]} Nxd3 {[%emt 0:00:12]} 20. Qxd3 {[%emt 0:00:03]} Bd7 {[%emt 0:05:33][%cal Ob7b5]} 21. g4 {[%emt 0:09:34]} (21. f5 $11) 21... b6 {[%emt 0:05:24]} (21... b5 $5 {[%cal Rb5c4]} 22. axb6 Qxb6 $15) 22. axb6 {[%emt 0:09:50]} (22. a6 b5 23. e5 Qb6 $17) (22. e5 $11) 22... Qxb6 $15 {[%emt 0:00:06]} 23. e5 $2 {[%emt 0:00:25]} (23. f5 $15) 23... Rxa1 $19 {[%emt 0:00:49]} 24. Nxa1 {[%emt 0:00:22]} Qa5 {[%emt 0:04:36]} 25. Nc2 {[%emt 0:00:11]} h5 $2 {[%emt 0:00:21]} (25... Ba4 $17 {Strongly threatening ...Bxc2.} 26. Bg3 dxe5 27. fxe5 Qc3 28. Qxc3 dxc3) 26. e6 $1 $11 {[%emt 0:04:58]} Ba4 {[%emt 0:00:19] [#] And now ...Bxc2 would win.} 27. exf7+ {[%emt 0:01:09]} Kxf7 {[%emt 0:00:05]} 28. Rxe8 {[%emt 0:00:20]} Bxe8 {[%emt 0:00:08] This bishop pair is nice.} 29. f5 {[%emt 0:01:19]} hxg4 {[%emt 0:02:26]} (29... gxf5 $11 {keeps the balance.} 30. Qe2 (30. Bxd6 Qb6 $11) (30. Qxf5+ Kg8 $11) (30. gxh5 Bd7 $11) (30. gxf5 Qd8 $15) 30... Bd7) 30. fxg6+ {[%emt 0:02:12]} Kf6 $2 {[%emt 0:00:35][%mdl 8192]} (30... Kg8 $16) 31. Bxd6 $2 {[%emt 0:00:47]} (31. Qe4 $18 {Qe6+ would kill now.} Bd7 32. Qf4+ Kxg6 33. Qxd6+ Bf6 34. Qxd7) 31... Qb6 {[%emt 0:00:28] Dancing on a razor blade.} 32. Qf1+ {[%emt 0:01:31]} ({Wrong is} 32. hxg4 $2 Qxd6 33. Qf3+ Ke7 $19) (32. Qg3 $5 {[%cal Rg3f4]} Bd7 33. hxg4 Kxg6 34. Ne1 $16 (34. Qd3+ Kf7 $11)) 32... Kxg6 {[%emt 0:00:13][%cal Bf6g6,Bg6f7,Bf7g8,Bg8h7][%mdl 32]} 33. Qd3+ {[%emt 0:00:28] [#]} (33. Bf4 $11) 33... Kf7 $1 $17 {[%emt 0:00:44]} 34. Qf5+ {[%emt 0:00:08]} Kg8 {[%emt 0:00:15]} 35. Bg3 {[%emt 0:01:15][%mdl 8192]} (35. Bf4 $17) 35... Bg6 $19 {[%emt 0:00:15]} 36. Qc8+ {[%emt 0:00:16]} Kh7 {[%emt 0:00:07]} 37. Ne1 {[%emt 0:00:26]} (37. Qxg4 $142 Bxc2 38. d6) 37... d3 {[%emt 0:00:44]} 38. Bf4 {[%emt 0:00:30]} Qb1 {[%emt 0:00:37]} (38... Qb2 $142 {( -> ...Bd4+)} 39. Qc7 g3 40. Bxg3 d2) 39. Qe6 {[%emt 0:00:17]} Qd1 {[%emt 0:01:06] White must now prevent ...d2.} 40. Qe7 $2 {[%emt 0:00:52]} (40. hxg4 d2 41. Bxd2 Qxd2 42. Nf3) 40... d2 {[%emt 0:00:30]} 41. Bxd2 {[%emt 0:07:59]} Qxd2 {[%emt 0:02:06]} 42. d6 {[%emt 0:02:49]} Qd4+ {[%emt 0:02:08]} (42... gxh3 $142 43. Qh4+ Kg8) 43. Kg2 {[%emt 0:06:37]} Be4+ {[%emt 0:02:12]} 44. Kf1 {[%emt 0:01:41]} Qxc4+ {[%emt 0:00:18]} 45. Kf2 {[%emt 0:00:12]} Qd4+ {[%emt 0:03:16]} 46. Ke2 {[%emt 0:02:28]} Bf5 {[%emt 0:01:21]} 47. h4 {[%emt 0:04:22]} g3 {[%emt 0:01:41] Quite a comeback for Black.  Weighted Error Value: White=1.26/Black=0.58} 0-1

[Event "FRA-ch Teams Top 16-Bas 2022"]
[Site "Chartres"]
[Date "2022.06.19"]
[Round "11.24"]
[White "Schippke, Manon"]
[Black "Ruhlmann, Helene"]
[Result "1-0"]
[ECO "B90"]
[WhiteElo "2072"]
[BlackElo "1779"]
[Annotator "NA RC"]
[PlyCount "83"]
[EventDate "2022.06.16"]
[EventType "team-tourn"]
[EventCountry "FRA"]
[SourceTitle "playchess.com"]
[Source "ChessBase"]
[SourceQuality "1"]
[TimeControl "40/5400+30:1800+30"]

1. e4 {[%emt 0:06:05]} c5 {[%emt 0:00:11]} 2. Nf3 {[%emt 0:00:04]} d6 {[%emt 0:00:04]} 3. d4 {[%emt 0:00:03]} cxd4 {[%emt 0:00:04]} 4. Nxd4 {[%emt 0:00:03]} Nf6 {[%emt 0:00:05]} 5. Nc3 {[%emt 0:00:03]} a6 {[%emt 0:00:03]} 6. Be3 {[%emt 0:00:04]} e5 {[%emt 0:00:23]} 7. Nb3 {[%emt 0:00:04]} Be6 {[%emt 0:00:59]} 8. f3 {[%emt 0:00:06]} h5 {[%emt 0:00:21]} 9. Nd5 {[%emt 0:00:12]} Bxd5 {[%emt 0:01:28]} 10. exd5 {[%emt 0:00:07]} Nbd7 {[%emt 0:01:33]} 11. Qd2 {[%emt 0:03:53]} g6 {[%emt 0:00:48]} 12. O-O-O {[%emt 0:00:17]} Bg7 {[%emt 1:30:31]} 13. h4 {[%emt 0:00:49]} Rc8 {[%emt 0:00:00]} 14. Kb1 {[%emt 0:02:10]} Nb6 {[%emt 0:00:00]} 15. Qa5 {[%emt 0:11:07]} Nfd7 {[%emt 0:00:00]} 16. Qb4 {[%emt 0:12:23]} Qc7 {[%emt 0:00:00]} 17. c3 {[%emt 0:00:57]} Bh6 {[%emt 0:00:00]} 18. Bxh6 {[%emt 0:01:46]} Rxh6 {[%emt 0:00:00]} 19. g4 {[%emt 0:07:17]} Kf8 {[%emt 0:00:00]} 20. Be2 {[%emt 0:13:09]} Re8 {[%emt 0:00:00]} 21. f4 {[%emt 0:10:44]} hxg4 {[%emt 0:00:00]} 22. fxe5 {[%emt 0:09:58]} Rxe5 {[%emt 0:00:00]} 23. Qf4 {[%emt 0:01:09]} Rh7 {[%emt 0:00:00]} 24. Bxg4 {[%emt 0:10:39]} Nxd5 {[%emt 0:00:00]} 25. Qd4 {[%emt 0:02:37]} N7f6 {[%emt 0:00:00]} 26. Bf3 {[%emt 0:00:10]} Rf5 {[%emt 0:00:00]} 27. Bxd5 {[%emt 0:01:34]} Nxd5 {[%emt 0:00:00]} 28. c4 {[%emt 0:02:17]} Nb6 {[%emt 0:00:00]} 29. Rc1 {[%emt 0:00:09]} Nd7 {[%emt 0:00:00]} 30. Rhd1 {[%emt 0:01:10]} Nc5 {[%emt 0:00:00]} 31. Nxc5 {[%emt 0:02:53]} dxc5 {[%emt 0:00:00]} 32. Qe3 {[%emt 0:01:27]} Qe7 {[%emt 0:00:00]} 33. Qc3 {[%emt 0:00:32]} Rxh4 {[%emt 0:00:00]} 34. Re1 {[%emt 0:00:09]} Qf6 {[%emt 0:00:00]} 35. Qb3 {[%emt 0:01:09]} Rf2 {[%emt 0:00:00]} 36. Ka1 {[%emt 0:00:40]} Rhh2 {[%emt 0:00:00]} 37. Rb1 {[%emt 0:00:02]} b6 {[%emt 0:00:00]} 38. a4 {[%emt 0:00:25]} g5 {[%emt 0:00:00]} 39. a5 {[%emt 0:00:12]} bxa5 {[%emt 0:00:32]} 40. Qb8+ {[%emt 0:00:08]} Kg7 {[%emt 0:00:10]} 41. Re8 {[%emt 0:30:08]} Rh7 {[%emt 0:35:30]} 42. Rg8+ {[%emt 0:00:29]} 1-0

[Event "FRA-ch Teams Top 16-Bas 2022"]
[Site "Chartres"]
[Date "2022.06.19"]
[Round "11.25"]
[White "Le Hetet, Nicolas"]
[Black "Ramirez Garcia, Jorge Alberto"]
[Result "1/2-1/2"]
[ECO "C47"]
[WhiteElo "2372"]
[BlackElo "2242"]
[Annotator "TA"]
[PlyCount "115"]
[EventDate "2022.06.16"]
[EventType "team-tourn"]
[EventCountry "FRA"]
[SourceTitle "playchess.com"]
[Source "ChessBase"]
[SourceQuality "1"]
[TimeControl "40/5400+30:1800+30"]

{[%evp 16,114,19,8,32,15,19,16,5,-20,31,27,37,35,60,60,61,24,38,28,50,72,74,52,134,131,118,115,99,35,34,12,16,18,12,0,20,6,41,4,8,19,141,48,49,14,11,8,20,9,45,41,65,41,46,8,8,8,8,8,0,8,10,8,21,30,64,0,62,62,62,62,4137,4137,4137,3646,4137,4129,1431,1372,563,218,193,216,197,44,44,0,0,0,0,0,0,0,0,0,0,0,0,0,0]} 1. e4 {[%emt 0:03:26]} e5 {[%emt 0:00:05]} 2. Nf3 {[%emt 0:00:16]} Nc6 {[%emt 0:00:06]} 3. d4 {[%emt 0:00:32]} exd4 {[%emt 0:00:07]} 4. Nxd4 {[%emt 0:00:08]} Nf6 {[%emt 0:00:06]} 5. Nxc6 {[%emt 0:00:17]} bxc6 {[%emt 0:00:05]} 6. Nc3 {[%emt 0:01:19]} Bb4 {[%emt 0:01:25]} 7. Bd3 {[%emt 0:00:11]} O-O {[%emt 0:00:15]} 8. O-O {[%emt 0:00:10]} Re8 {[%emt 0:01:21]} 9. Bg5 {[%emt 0:04:04] The main line 9.Bg5 scores better than 9.Qf3.} Rb8 {[%emt 0:00:05] C47: Scotch Four Knights and Four Knights with 4 g3.} 10. Qf3 {[%emt 0:02:16]} Bd6 {[%emt 0:03:56]} 11. Rab1 {[%emt 0:04:32]} Be5 {[%emt 0:01:35] [#]} 12. Na4 $146 {[%emt 0:14:09]} ({Predecessor:} 12. Bf4 Qe7 13. Bxe5 Qxe5 14. Qg3 Qxg3 15. hxg3 d6 16. f3 h5 17. b4 Nd7 18. b5 {½-½ (33) Mastrovasilis,D (2594)-Navara,D (2724) Katowice 2019}) 12... Rb4 {[%emt 0:07:42]} (12... d6 $11) 13. b3 $14 {[%emt 0:07:24]} d5 {[%emt 0:08:18][%cal Rd5e4]} 14. Rfe1 {[%emt 0:08:48]} h6 {[%emt 0:21:13]} 15. Bxf6 {[%emt 0:06:18]} Bxf6 {[%emt 0:00:15]} 16. h3 {[%emt 0:14:56]} Qe7 {[%emt 0:29:47][%cal Rd5e4]} 17. c3 {[%emt 0:06:42]} dxe4 {[%emt 0:02:29][%cal Ob4a4]} 18. Qh5 $1 {[%emt 0:00:15]} g6 {[%emt 0:08:57]} 19. Qa5 {[%emt 0:03:32]} Rb8 {[%emt 0:01:39]} (19... Qd8 $1 $14 20. Bf1 (20. cxb4 exd3 21. Rxe8+ Qxe8 $11) 20... Rb8) 20. Rxe4 $16 {[%emt 0:01:40]} Qd8 {[%emt 0:02:30]} 21. Rxe8+ {[%emt 0:02:05]} (21. Qxa7 Rxe4 22. Bxe4 Rb5) 21... Qxe8 {[%emt 0:00:04]} 22. Qxc7 {[%emt 0:00:49]} ({Better is} 22. Qxa7 $16 Bd7 23. Qxc7) 22... Rb7 $14 {[%emt 0:01:35]} 23. Qg3 {[%emt 0:01:55]} Re7 {[%emt 0:00:37]} 24. Qf3 {[%emt 0:03:38]} Kg7 {[%emt 0:01:24]} 25. Kh2 {[%emt 0:04:57]} Re1 {[%emt 0:02:23]} 26. Rxe1 {[%emt 0:01:23]} Qxe1 {[%emt 0:00:03]} 27. Be4 {[%emt 0:00:36]} Be5+ {[%emt 0:02:11] This bishop pair is nice.} 28. g3 {[%emt 0:00:11]} Qf1 {[%emt 0:00:37] [#]} (28... h5 $11) 29. Qg2 {[%emt 0:00:23]} (29. h4 $1 $16) 29... Qa1 {[%emt 0:00:14][%csl LRa2,LRc3]} 30. Bxc6 {[%emt 0:02:19]} (30. f4 $5 {[%cal Rf4e5]} Bxc3 31. Nxc3 (31. Bxc6 Bd4 $17) 31... Qxc3 32. Bxc6 $14) 30... Qxa2 {[%emt 0:00:09]} 31. f4 {[%emt 0:00:17]} (31. Qf3 {feels hotter.} Qd2 32. Kg2 Bf5 33. Bd5) 31... Qxg2+ {[%emt 0:00:37]} 32. Kxg2 $11 {[%emt 0:00:06][%mdl 4096] Endgame KBB-KBN} Bd6 {[%emt 0:00:34]} 33. h4 {[%emt 0:04:21]} Bg4 {[%emt 0:01:37]} 34. Bd5 {[%emt 0:02:12]} f6 {[%emt 0:00:12]} 35. Kf2 {[%emt 0:01:04]} g5 {[%emt 0:00:06]} 36. Ke3 {[%emt 0:00:17]} gxh4 {[%emt 0:00:27]} 37. gxh4 {[%emt 0:00:04]} Kg6 {[%emt 0:00:18]} 38. c4 {[%emt 0:01:12][%cal Bc3c4,Bc4c5][%mdl 32]} Kh5 {[%emt 0:00:08]} ({Don't play} 38... Kf5 39. Be4+ Ke6 40. Bd5+ Kd7 41. c5 $16) 39. c5 {[%emt 0:00:18]} Bb8 {[%emt 0:00:10]} 40. Nc3 {[%emt 0:00:48]} Kxh4 {[%emt 0:02:49]} 41. Bh1 {[%emt 0:14:59]} (41. Bc4 $14) 41... f5 {[%emt 0:03:20]} ({Black should play} 41... h5 $11) 42. c6 $14 {[%emt 0:02:57] Threatens to win with b4.} Kg3 {[%emt 0:04:07]} 43. Nd5 {[%emt 0:01:40] And now b4 would win.} Bh3 $2 {[%emt 0:00:04][%mdl 8192]} (43... a5 $14) 44. c7 $18 {[%emt 0:02:15]} Bxc7 {[%emt 0:00:09]} 45. Nxc7 {[%emt 0:00:04]} h5 {[%emt 0:00:29]} 46. Ne6 {[%emt 0:03:12]} h4 {[%emt 0:00:54]} 47. Nd4 {[%emt 0:00:13]} Bg4 {[%emt 0:00:59]} 48. Nf3 $2 {[%emt 0:05:55]} (48. b4) 48... a5 {[%emt 0:00:28] [#]} 49. Nd2 $1 {[%emt 0:00:28] Intending Nf1+ and mate.} Bh3 {[%emt 0:01:20] Inhibits Nf1+.} 50. Bd5 {[%emt 0:00:53] aiming for Be6.} Bg2 {[%emt 0:00:18]} 51. Bxg2 {[%emt 0:01:00]} (51. Be6 $5 {[%cal Re6f5]} Kg4 52. Bc4 $16) 51... Kxg2 $14 {[%emt 0:00:03] KN-K3P. The position is equal.} 52. Nf3 {[%emt 0:01:40]} h3 {[%emt 0:06:40]} 53. Nh4+ {[%emt 0:00:49]} Kf1 {[%emt 0:06:08] ( -> ...h2)} 54. Nxf5 {[%emt 0:00:19]} h2 {[%emt 0:00:10] ...Kg2 is the strong threat.} 55. Ng3+ $1 {[%emt 0:00:41]} Kg2 {[%emt 0:00:07]} 56. Nh1 {[%emt 0:00:54] White wants to mate with Nf2.} Kxh1 {[%emt 0:00:28]} 57. Kf2 {[%emt 0:00:06]} a4 {[%emt 0:00:04]} 58. bxa4 {[%emt 0:01:35] Black defended with fortune.  Weighted Error Value: White=0.21 (precise) /Black=0.17 (very precise)} 1/2-1/2